Workbook

Sheet Sheet1
A1: USDA - RUS | C1: Title of Information Document | I1: OMB No.
C2: Water and Waste Loan and Grant Program | J2: 0572-0121
A3: SUMMARY OF INFORMATION COLLECTION | C3: 7 CFR 1780 | I3: Date Prepared
I4: 2021
A5: INSTRUCTIONS: | E5: > | F5: (f) TOTAL | H5: (h) TOTAL | J5: (k) TOTAL
A6: Use this form when a single information collection document involves multiple reporting and | E6: > | F6: - | G6: = (e) Average | H6: - | I6: = (g) Average | J6: - | K6: = (j) Average
A7: recordkeeping requirements. | E7: > | F7: (d) TOTAL | H7: (f) TOTAL | J7: (i) TOTAL
A8: IDENTIFICATION OF REPORTING AND RECORDKEEPPING REQUIREMENTS | G8: ANNUAL BURDEN
C9: FORM | F9: REPORTS | J9: RECORDS
C10: NO(s) | D10: NO. OF | E10: NO. OF | F10: TOTAL | G10: HOURS | H10: TOTAL | I10: NO. OF | J10: ANNUAL | K10: TOTAL
A11: SECTION OF | C11: (If "none" | D11: RESPON- | E11: RESPONSES | F11: ANNUAL | G11: PER | H11: HOURS | I11: RECORD- | J11: HOURS PER | K11: RECORD-
A12: REGULATIONS | B12: DESCRIPTION | C12: so state) | D12: DENTS | E12: PER | F12: RESPONSES | G12: RESPONSE | H12: (Col. f & g) | I12: KEEPERS | J12: RECORD- | K12: KEEPING
E13: RESPON- | F13: (Col. d & e) | J13: KEEPER | K13: HOURS
E14: DENT | K14: (Col. i & j)
A15: (a) | B15: (b) | C15: (c) | D15: (d) | E15: (e) | F15: (f) | G15: (g) | H15: (h) | I15: (i) | J15: (j) | K15: (k)
B17: NON-FORM BURDEN-(Under this collection 0572-0121)
B18: Application/Eligibility: (uses application data)
A19: 1780.1(d) | B19: Documentation of Income Survey | C19: Written | D19: 163 | E19: 1 | F19: =D19*E19 -> 163 | G19: 8 | H19: =F19*G19 -> 1304
B20: 7 CFR 1777-Section 306C (0572-0109) | D20: 6 | E20: 1 | F20: =SUM(D20*E20) -> 6 | G20: 8 | H20: =SUM(F20*G20) -> 48
B21: 7 CFR 1778-ECWAG (0572-0110) | D21: 9 | E21: 1 | F21: =D21*E21 -> 9 | G21: 8 | H21: =F21*G21 -> 72
A23: 1780.1(f) | B23: Relationship or association with RUS employees | C23: Written | D23: 817 | E23: 1 | F23: =SUM(D23*E23) -> 817 | G23: 0.25 | H23: =SUM(F23*G23) -> 204.25
B24: 7 CFR 1777-Section 306C (0572-0109) | D24: 30 | E24: 1 | F24: =D24*E24 -> 30 | G24: 0.25 | H24: =F24*G24 -> 7.5
B25: 7 CFR 1778-ECWAG (0572-0110) | D25: 49 | E25: 1 | F25: =D25*E25 -> 49 | G25: 0.25 | H25: =F25*G25 -> 12.25
A27: 1780.7(d) & | B27: Statement on availability to obtain credit elsewhere | C27: Written | D27: 817 | E27: 1 | F27: =SUM(D27*E27) -> 817 | G27: 1 | H27: =SUM(F27*G27) -> 817
A28: 1780.33 (d) | B28: 7 CFR 1777-Section 306C | D28: 30 | E28: 1 | F28: =D28*E28 -> 30 | G28: 1 | H28: =F28*G28 -> 30
B29: 7 CFR 1778-ECWAG | D29: 49 | E29: 1 | F29: =D29*E29 -> 49 | G29: 1 | H29: =F29*G29 -> 49
A31: 1780.11(a)(2) | B31: Notification of service statement | C31: Written | D31: 163 | E31: 1 | F31: =SUM(D31*E31) -> 163 | G31: 1 | H31: =SUM(F31*G31) -> 163
B32: 7 CFR 1777-Colonias | D32: 6 | E32: 1 | F32: =D32*E32 -> 6 | G32: 1 | H32: =F32*G32 -> 6
B33: 7 CFR 1778-ECWAG | D33: 9 | E33: 1 | F33: =D33*E33 -> 9 | G33: 1 | H33: =F33*G33 -> 9
A35: 1780.14(a) | B35: Security- Public Bodies- General Obligation and Revenue Bonds | C35: Written | D35: 517 | E35: 1 | F35: =D35*E35 -> 517 | G35: 4 | H35: =F35*G35 -> 2068
B36: 7 CFR 1777-Colonias | D36: 0 | E36: 1 | F36: 0 | G36: 4 | H36: 0
B37: 7 CFR 1778-ECWAG | D37: 0 | E37: 1 | F37: =SUM(D37*E37) -> 0 | G37: 4 | H37: =SUM(F37*G37) -> 0
A39: 1780.14(b) | B39: Security- Not-For-Profit- Liens on property and Financing Stmt. | C39: Written | D39: 68 | E39: 1 | F39: =SUM(D39*E39) -> 68 | G39: 4 | H39: =SUM(F39*G39) -> 272
B40: 7 CFR 1777-Colonias | D40: 0 | E40: 1 | F40: =D40*E40 -> 0 | G40: 4 | H40: =F40*G40 -> 0
B41: 7 CFR 1778-ECWAG | D41: 0 | E41: 1 | F41: =D41*E41 -> 0 | G41: 4 | H41: =F41*G41 -> 0
A43: 1780.19 | B43: Public Information | C43: Written | D43: 817 | E43: 1 | F43: =SUM(D43*E43) -> 817 | G43: 2 | H43: =SUM(F43*G43) -> 1634
B44: 7 CFR 1777-Colonias | D44: 30 | E44: 1 | F44: =D44*E44 -> 30 | G44: 2 | H44: =F44*G44 -> 60
B45: 7 CFR 1778-ECWAG | D45: 49 | E45: 1 | F45: =D45*E45 -> 49 | G45: 2 | H45: =F45*G45 -> 98 | I45: =SUM(H44:H45+H32:H33+H28:H29+H24:H25+H20:H21) -> 391.75
B46: SUBTOTAL | F46: =SUM(F19:F45) -> 3629 | H46: =SUM(H19:H45) -> 6854 | I46: =SUM(I23:I45) -> 391.75 | K46: =SUM(K23:K45) -> 0
B47: TOTAL OF ALL PAGES | F47: =SUM(F46,F84,F117,F151,F184,F216) -> 47782 | H47: =SUM(H46,H84,H117,H151,H184,H216) -> 162083 | I47: =SUM(I216) -> 14000 | K47: =SUM(K216) -> 1120
A48: TOTAL - Columns "F" and "I" = OMB 83I, 13 b; Columns "H" and "K" = OMB 83I, 13c | F48: =SUM(F47,I47) -> 61782 | H48: =SUM(H47,K47) -> 163203
A49: 1780.33(b) | B49: Intergovernmental comments | C49: Written | D49: 163 | E49: 1 | F49: =SUM(D49*E49) -> 163 | G49: 1 | H49: =SUM(F49*G49) -> 163
B50: 7 CFR 1777-Colonias | D50: 6 | E50: 1 | F50: =D50*E50 -> 6 | G50: 1 | H50: =F50*G50 -> 6
B51: 7 CFR 1778-ECWAG | D51: 9 | E51: 1 | F51: =D51*E51 -> 9 | G51: 1 | H51: =F51*G51 -> 9
A53: 1780.33(c) | B53: Preliminary engineering report | C53: Written | D53: 817 | E53: 1 | F53: =SUM(D53*E53) -> 817 | G53: 40 | H53: =SUM(F53*G53) -> 32680
B54: 7 CFR 1777-Colonias | D54: 30 | E54: 1 | F54: =D54*E54 -> 30 | G54: 40 | H54: =F54*G54 -> 1200
B55: 7 CFR 1778-ECWAG | D55: 49 | E55: 1 | F55: =D55*E55 -> 49 | G55: 40 | H55: =F55*G55 -> 1960
A57: 1780.33(e) | B57: Supporting documentation | C57: Written | D57: 817 | E57: 1 | F57: =SUM(D57*E57) -> 817 | G57: 4 | H57: =SUM(F57*G57) -> 3268
B58: 7 CFR 1777-Colonias | D58: 30 | E58: 1 | F58: =D58*E58 -> 30 | G58: 4 | H58: =F58*G58 -> 120
B59: 7 CFR 1778-ECWAG | D59: 49 | E59: 1 | F59: =D59*E59 -> 49 | G59: 4 | H59: =F59*G59 -> 196
A61: 1780.33(f) | B61: Environmental Report | C61: Written | D61: 817 | E61: 1 | F61: =D61*E61 -> 817 | G61: 24 | H61: =F61*G61 -> 19608
B62: 7 CFR 1777-Colonias | D62: 30 | E62: 1 | F62: 30 | G62: 24 | H62: 720
B63: 7 CFR 1778-ECWAG | D63: 49 | E63: 1 | F63: 49 | G63: 24 | H63: =SUM(F63*G63) -> 1176
A65: 1780.33(h)(5) | B65: Certification Regarding Debarment- Primary Covered Trans. | C65: AD-1047 | D65: 817 | E65: 1 | F65: =SUM(D65*E65) -> 817 | G65: 0.25 | H65: =SUM(F65*G65) -> 204.25
B66: 7 CFR 1777-Colonias | C66: (0505-0027) | D66: 30 | E66: 1 | F66: =D66*E66 -> 30 | G66: 0.25 | H66: =F66*G66 -> 7.5
B67: 7 CFR 1778-ECWAG | D67: 49 | E67: 1 | F67: =D67*E67 -> 49 | G67: 0.25 | H67: =F67*G67 -> 12.25
A69: 1780.33(h)(5) | B69: Certification Regarding Debarment- Lower Tier Covered Trans. | C69: AD-1048 | D69: 708 | E69: 4 | F69: =SUM(D69*E69) -> 2832 | G69: 0.25 | H69: =SUM(F69*G69) -> 708
B70: 7 CFR 1777-Colonias | C70: (0505-0027) | D70: 29 | E70: 4 | F70: =D70*E70 -> 116 | G70: 0.25 | H70: =F70*G70 -> 29
B71: 7 CFR 1778-ECWAG | D71: 42 | E71: 4 | F71: =D71*E71 -> 168 | G71: 0.25 | H71: =F71*G71 -> 42
A73: 1780.33(h)(6) | B73: Certification Regarding Drug-Free Workplace | C73: AD-1049 | D73: 517 | E73: 1 | F73: =SUM(D73*E73) -> 517 | G73: 0.25 | H73: =SUM(F73*G73) -> 129.25
B74: 7 CFR 1777-Colonias | C74: (0505-0027) | D74: 29 | E74: 1 | F74: =D74*E74 -> 29 | G74: 0.25 | H74: =F74*G74 -> 7.25
B75: 7 CFR 1778-ECWAG | D75: 42 | E75: 1 | F75: =D75*E75 -> 42 | G75: 0.25 | H75: =F75*G75 -> 10.5
A77: 1780.33(h)(7) | B77: Cert. for Contracts, Grants, and Loans (Regarding Lobbying) | C77: RD 1940-Q | D77: 817 | E77: 1 | F77: =D77*E77 -> 817 | G77: 0.25 | H77: =F77*G77 -> 204.25
B78: 7 CFR 1777-Colonias | D78: 30 | E78: 1 | F78: 30 | G78: 0.25 | H78: =SUM(F78*G78) -> 7.5
B79: 7 CFR 1778-ECWAG | D79: 49 | E79: 1 | F79: 49 | G79: 0.25 | H79: =F79*G79 -> 12.25
A81: 1780.33(h)(8) | B81: Certification on Tying Arrangements | C81: Written | D81: 817 | E81: 1 | F81: =D81*E81 -> 817 | G81: 0.25 | H81: =SUM(F81*G81) -> 204.25
B82: 7 CFR 1777-Colonias | D82: 30 | E82: 1 | F82: 30 | G82: 0.25 | H82: =F82*G82 -> 7.5
B83: 7 CFR 1778-ECWAG | D83: 49 | E83: 1 | F83: 49 | G83: 0.25 | H83: 12.25 | I83: =SUM(H82:H83+H78:H79+H74:H75+H70:H71+H66:H67+H62:H63+H58:H59+H54:H55+H50:H51) -> 5535
B84: SUBTOTAL | F84: =SUM(F49:F83) -> 9258 | H84: =SUM(H49:H83) -> 62704
A86: 1780.39(b)(1),(2) | B86: Agreements for professional services | C86: Written & | D86: 817 | E86: 1 | F86: =SUM(D86*E86) -> 817 | G86: 6 | H86: =SUM(F86*G86) -> 4902
A87: , and (3) | B87: 7 CFR 1777-Colonias | C87: RUS Bulletin | D87: 30 | E87: 1 | F87: =D87*E87 -> 30 | G87: 6 | H87: =F87*G87 -> 180
B88: 7 CFR 1778-ECWAG | C88: 1780-7 | D88: 49 | E88: 1 | F88: =D88*E88 -> 49 | G88: 6 | H88: =F88*G88 -> 294
A90: 1780.39(b)(4) | B90: Contracts for other services | C90: Written | D90: 205 | E90: 1 | F90: =SUM(D90*E90) -> 205 | G90: 2 | H90: =SUM(F90*G90) -> 410
B91: 7 CFR 1777-Colonias | D91: 7 | E91: 1 | F91: =D91*E91 -> 7 | G91: 2 | H91: =F91*G91 -> 14
B92: 7 CFR 1778-ECWAG | D92: 15 | E92: 1 | F92: =D92*E92 -> 15 | G92: 2 | H92: =F92*G92 -> 30
A94: 1780.39(c)(3) | B94: User agreement | C94: Written & | D94: 163 | E94: 1 | F94: =SUM(D94*E94) -> 163 | G94: 4 | H94: =SUM(F94*G94) -> 652
B95: 7 CFR 1777-Colonias | C95: RUS Bulletin | D95: 6 | E95: 1 | F95: =D95*E95 -> 6 | G95: 4 | H95: =F95*G95 -> 24
B96: 7 CFR 1778-ECWAG | C96: 1780-9 | D96: 9 | E96: 1 | F96: =D96*E96 -> 9 | G96: 4 | H96: =F96*G96 -> 36
A98: 1780.39(c)(5)(i) | B98: Positive programs to encourage connections | C98: Written | D98: 163 | E98: 1 | F98: =SUM(D98*E98) -> 163 | G98: 4 | H98: =SUM(F98*G98) -> 652
B99: 7 CFR 1777-Colonias | D99: 6 | E99: 1 | F99: =D99*E99 -> 6 | G99: 4 | H99: =F99*G99 -> 24
B100: 7 CFR 1778-ECWAG | D100: 9 | E100: 1 | F100: =D100*E100 -> 9 | G100: 4 | H100: =F100*G100 -> 36
A102: 1780.39(d) | B102: Interim financing | C102: Written | D102: 469 | E102: 1 | F102: =SUM(D102*E102) -> 469 | G102: 4 | H102: =SUM(F102*G102) -> 1876
B103: 7 CFR 1777-Colonias | D103: 0 | E103: 1 | F103: =D103*E103 -> 0 | G103: 4 | H103: =F103*G103 -> 0
B104: 7 CFR 1778-ECWAG | D104: 0 | E104: 1 | F104: =D104*E104 -> 0 | G104: 4 | H104: =F104*G104 -> 0
A106: 1780.39(g)(3) | B106: Fidelity or employee dishonesty Bond | C106: Written | D106: 586 | E106: 1 | F106: =SUM(D106*E106) -> 586 | G106: 2 | H106: =SUM(F106*G106) -> 1172
B107: 7 CFR 1777-Colonias | D107: 0 | E107: 1 | F107: =D107*E107 -> 0 | G107: 2 | H107: =F107*G107 -> 0
B108: 7 CFR 1778-ECWAG | D108: 0 | E108: 1 | F108: =D108*E108 -> 0 | G108: 2 | H108: =F108*G108 -> 0
A110: 1780.39(g)(4) | B110: Property insurance | C110: Written | D110: 817 | E110: 1 | F110: =SUM(D110*E110) -> 817 | G110: 1 | H110: =SUM(F110*G110) -> 817
B111: 7 CFR 1777-Colonias | D111: 30 | E111: 1 | F111: =D111*E111 -> 30 | G111: 1 | H111: =F111*G111 -> 30
B112: 7 CFR 1778-ECWAG | D112: 49 | E112: 1 | F112: =D112*E112 -> 49 | G112: 1 | H112: =F112*G112 -> 49
A114: 1780.39(g)(5) | B114: General Liability Insurance | C114: Written | D114: 817 | E114: 1 | F114: =SUM(D114*E114) -> 817 | G114: 1 | H114: =SUM(F114*G114) -> 817
B115: 7 CFR 1777-Colonias | D115: 30 | E115: 1 | F115: =D115*E115 -> 30 | G115: 1 | H115: =F115*G115 -> 30
B116: 7 CFR 1778-ECWAG | D116: 49 | E116: 1 | F116: =D116*E116 -> 49 | G116: 1 | H116: =F116*G116 -> 49
B117: SUBTOTAL | F117: =SUM(F85:F116) -> 4326 | H117: =SUM(H85:H116) -> 12094
A118: 1780.39(g)(6) | B118: Flood Insurance | C118: Written | D118: 163 | E118: 1 | F118: =SUM(D118*E118) -> 163 | G118: 1 | H118: =SUM(F118*G118) -> 163
B119: 7 CFR 1777-Colonias | D119: 6 | E119: 1 | F119: =D119*E119 -> 6 | G119: 1 | H119: =F119*G119 -> 6
B120: 7 CFR 1778-ECWAG | D120: 9 | E120: 1 | F120: =D120*E120 -> 9 | G120: 1 | H120: =F120*G120 -> 9
A122: 1780.39(g)7) | B122: Workman's compensation insurance | C122: Written | D122: 817 | E122: 1 | F122: =SUM(D122*E122) -> 817 | G122: 1 | H122: =SUM(F122*G122) -> 817
B123: 7 CFR 1777-Colonias | D123: 30 | E123: 1 | F123: =D123*E123 -> 30 | G123: 1 | H123: =F123*G123 -> 30
B124: 7 CFR 1778-ECWAG | D124: 49 | E124: 1 | F124: =D124*E124 -> 49 | G124: 1 | H124: =F124*G124 -> 49
B126: Approval/Actions Following Obligation: (uses obligation data)
A127: 1780.41(a)(5) | B127: Letter of Conditions | C127: Written | D127: 805 | E127: 1 | F127: =D127*E127 -> 805 | G127: 1 | H127: =F127*G127 -> 805
B128: 7 CFR 1777-Colonias | D128: 33 | E128: 1 | F128: =D128*E128 -> 33 | G128: 1 | H128: 33
B129: 7 CFR 1778-ECWAG | D129: 42 | E129: 1 | F129: =SUM(D129*E129) -> 42 | G129: 1 | H129: =SUM(F129*G129) -> 42
A131: 1780.44(f) | B131: Evidence of other funds | C131: Written | D131: 160 | E131: 1 | F131: =SUM(D131*E131) -> 160 | G131: 1 | H131: =SUM(F131*G131) -> 160
B132: 7 CFR 1777-Colonias | D132: 6 | E132: 1 | F132: =D132*E132 -> 6 | G132: 1 | H132: =F132*G132 -> 6
B133: 7 CFR 1778-ECWAG | D133: 9 | E133: 1 | F133: =D133*E133 -> 9 | G133: 1 | H133: =F133*G133 -> 9
A135: 1780.44(g) | B135: Appraisal Report | C135: Written | D135: 94 | E135: 1 | F135: =SUM(D135*E135) -> 94 | G135: 2 | H135: =SUM(F135*G135) -> 188
B136: 7 CFR 1777-Colonias | D136: 0 | E136: 1 | F136: =D136*E136 -> 0 | G136: 2 | H136: =F136*G136 -> 0
B137: 7 CFR 1778-ECWAG | D137: 0 | E137: 1 | F137: =D137*E137 -> 0 | G137: 2 | H137: =F137*G137 -> 0
A139: 1780.44(g)(1)(ii) | B139: User Connections | C139: Written | D139: 80 | E139: 1 | F139: =SUM(D139*E139) -> 80 | G139: 4 | H139: =SUM(F139*G139) -> 320
B140: 7 CFR 1777-Colonias | D140: 3 | E140: 1 | F140: =D140*E140 -> 3 | G140: 4 | H140: =F140*G140 -> 12
B141: 7 CFR 1778-ECWAG | D141: 6 | E141: 1 | F141: =D141*E141 -> 6 | G141: 4 | H141: =F141*G141 -> 24
A143: 1780.44(g)(3) | B143: Water rights | C143: Written | D143: 80 | E143: 1 | F143: =D143*E143 -> 80 | G143: 4 | H143: =SUM(F143*G143) -> 320
B144: 7 CFR 1777-Colonias | D144: 3 | E144: 1 | F144: =D144*E144 -> 3 | G144: 4 | H144: =F144*G144 -> 12
B145: 7 CFR 1778-ECWAG | D145: 6 | E145: 1 | F145: =D145*E145 -> 6 | G145: 4 | H145: =F145*G145 -> 24
A147: 1780.44(g)(4) | B147: Lease agreement | C147: Written | D147: 80 | E147: 1 | F147: =SUM(D147*E147) -> 80 | G147: 4 | H147: =SUM(F147*G147) -> 320
B148: 7 CFR 1777-Colonias | D148: 3 | E148: 1 | F148: =D148*E148 -> 3 | G148: 4 | H148: =F148*G148 -> 12
B149: 7 CFR 1778-ECWAG | D149: 6 | E149: 1 | F149: =D149*E149 -> 6 | G149: 4 | H149: =F149*G149 -> 24
B151: SUBTOTAL | F151: =SUM(F118:F149) -> 2490 | H151: =SUM(H118:H149) -> 3385
A152: 1780.45(a)(2) | B152: Loan Resolution (Public Bodies) | C152: RUS Bulletin 1780-27 | D152: 517 | E152: 1 | F152: =SUM(D152*E152) -> 517 | G152: 1 | H152: =SUM(F152*G152) -> 517
B153: 7 CFR 1777-Colonias | D153: 0 | E153: 1 | F153: =D153*E153 -> 0 | G153: 1 | H153: =F153*G153 -> 0
B154: 7 CFR 1778-ECWAG | D154: 0 | E154: 1 | F154: =D154*E154 -> 0 | G154: 1 | H154: =F154*G154 -> 0
A156: 1780.45(a)(2) | B156: Loan Resolution, Security Agreement | C156: RUS Bulletin 1780-28 | D156: 68 | E156: 1 | F156: =SUM(D156*E156) -> 68 | G156: 1 | H156: =SUM(F156*G156) -> 68
B157: 7 CFR 1777-Colonias | D157: 0 | E157: 1 | F157: =D157*E157 -> 0 | G157: 1 | H157: =F157*G157 -> 0
B158: 7 CFR 1778-ECWAG | D158: 0 | E158: 1 | F158: =D158*E158 -> 0 | G158: 1 | H158: =F158*G158 -> 0
A160: 1780.45(c) | B160: Grant Agreement | C160: RUS Bulletin 1780-12 | D160: 517 | E160: 1 | F160: =SUM(D160*E160) -> 517 | G160: 1 | H160: =SUM(F160*G160) -> 517
B161: 7 CFR 1777-Colonias | D161: 33 | E161: 1 | F161: =D161*E161 -> 33 | G161: 1 | H161: =F161*G161 -> 33
B162: 7 CFR 1778-ECWAG | D162: 42 | E162: 1 | F162: =D162*E162 -> 42 | G162: 1 | H162: =F162*G162 -> 42
A164: 1780.47(d) & (e ) | B164: Audits and Year-End Financial Reports | C164: Written | D164: 805 | E164: 3 | F164: =SUM(D164*E164) -> 2415 | G164: 8 | H164: =SUM(F164*G164) -> 19320
B165: 7 CFR 1777-Colonias | D165: 33 | E165: 3 | F165: =D165*E165 -> 99 | G165: 8 | H165: =F165*G165 -> 792
B166: 7 CFR 1778-ECWAG | D166: 42 | E166: 3 | F166: =D166*E166 -> 126 | G166: 8 | H166: =F166*G166 -> 1008
A168: 1780.47(f)(1) | B168: Management report- Quarterly Report | C168: Written | D168: 160 | E168: 4 | F168: =SUM(D168*E168) -> 640 | G168: 4 | H168: =SUM(F168*G168) -> 2560
B169: 7 CFR 1777-Colonias | D169: 7 | E169: 4 | F169: =D169*E169 -> 28 | G169: 4 | H169: =F169*G169 -> 112
B170: 7 CFR 1778-ECWAG | D170: 10 | E170: 4 | F170: =D170*E170 -> 40 | G170: 4 | H170: =F170*G170 -> 160
B172: Actions during Construction: (uses construction data)
A173: 1780.61(a) | B173: Construction contract forms | C173: Written | D173: 708 | E173: 1 | F173: =SUM(D173*E173) -> 708 | G173: 8 | H173: =SUM(F173*G173) -> 5664
B174: 7 CFR 1777-Colonias | D174: 33 | E174: 1 | F174: =D174*E174 -> 33 | G174: 8 | H174: =F174*G174 -> 264
B175: 7 CFR 1778-ECWAG | D175: 42 | E175: 1 | F175: =D175*E175 -> 42 | G175: 8 | H175: =F175*G175 -> 336
A177: 1780.61(b) | B177: Borrower attorney's certification of construction contract | C177: Written & | D177: 708 | E177: 1 | F177: =SUM(D177*E177) -> 708 | G177: 8 | H177: =SUM(F177*G177) -> 5664
B178: 7 CFR 1777-Colonias | C178: Exhibit GC-H | D178: 33 | E178: 1 | F178: =D178*E178 -> 33 | G178: 8 | H178: =F178*G178 -> 264
B179: 7 CFR 1778-ECWAG | D179: 42 | E179: 1 | F179: =D179*E179 -> 42 | G179: 8 | H179: =F179*G179 -> 336
A181: 1780.7 | B181: Owner's Solicitation and Review of Offers | C181: Written | D181: 708 | E181: 1 | F181: =D181*E181 -> 708 | G181: 8 | H181: =F181*G181 -> 5664
B182: 7 CFR 1777-Colonias | D182: 33 | E182: 1 | F182: 33 | G182: 8 | H182: 264
B183: 7 CFR 1778-ECWAG | D183: 42 | E183: 1 | F183: =SUM(D183*E183) -> 42 | G183: 8 | H183: =SUM(F183*G183) -> 336
B184: SUBTOTAL | F184: =SUM(F152:F183) -> 6874 | H184: =SUM(H152:H183) -> 43921
A186: 1780.74 | B186: Contracts awarded prior to application | C186: Written | D186: 39 | E186: 1 | F186: =SUM(D186*E186) -> 39 | G186: 2 | H186: =SUM(F186*G186) -> 78
B187: 7 CFR 1777-Colonias | D187: 1 | E187: 1 | F187: =D187*E187 -> 1 | G187: 2 | H187: =F187*G187 -> 2
B188: 7 CFR 1778-ECWAG | D188: 2 | E188: 1 | F188: =D188*E188 -> 2 | G188: 2 | H188: =F188*G188 -> 4
A190: 1780.76 (a) | B190: Pre-Construction Conference | C190: RD 1924-16 | D190: 708 | E190: 1 | F190: =SUM(D190*E190) -> 708 | G190: 1 | H190: =SUM(F190*G190) -> 708
B191: 7 CFR 1777 - Colonias | D191: 33 | E191: 1 | F191: 33 | G191: 1 | H191: 33
B192: 7 CFR 1778 -ECWAG | D192: 42 | E192: 1 | F192: 42 | G192: 1 | H192: 42
A194: 1780.76(b) | B194: Monitoring construction- Owner's Report | C194: Written | D194: 708 | E194: 12 | F194: =SUM(D194*E194) -> 8496 | G194: 2 | H194: =SUM(F194*G194) -> 16992
B195: 7 CFR 1777-Colonias | D195: 33 | E195: 12 | F195: =D195*E195 -> 396 | G195: 2 | H195: =F195*G195 -> 792
B196: 7 CFR 1778-ECWAG | D196: 42 | E196: 12 | F196: =D196*E196 -> 504 | G196: 5 | H196: =F196*G196 -> 2520
A198: 1780.76(c) | B198: Resident Inspector resume | C198: Written | D198: 708 | E198: 1 | F198: =SUM(D198*E198) -> 708 | G198: 2 | H198: =SUM(F198*G198) -> 1416
B199: 7 CFR 1777-Colonias | D199: 33 | E199: 1 | F199: =D199*E199 -> 33 | G199: 2 | H199: =F199*G199 -> 66
B200: 7 CFR 1778-ECWAG | D200: 42 | E200: 1 | F200: =D200*E200 -> 42 | G200: 2 | H200: =F200*G200 -> 84
A202: 1780.76(d) | B202: Daily inspection report | C202: Written | D202: 708 | E202: 12 | F202: =SUM(D202*E202) -> 8496 | G202: 0.5 | H202: =SUM(F202*G202) -> 4248
B203: 7 CFR 1777-Colonias | D203: 33 | E203: 12 | F203: =D203*E203 -> 396 | G203: 0.5 | H203: =F203*G203 -> 198
B204: 7 CFR 1778-ECWAG | D204: 42 | E204: 12 | F204: =D204*E204 -> 504 | G204: 0.5 | H204: =F204*G204 -> 252
A206: 1780.83 | B206: Bond Transcript Documents | C206: Written | D206: 680 | E206: 1 | F206: =D206*E206 -> 680 | G206: 8 | H206: =F206*G206 -> 5440
B207: 7 CFR 1777-Colonias | D207: 0 | E207: 1 | F207: 0 | G207: 8 | H207: 0
B208: 7 CFR 1778-ECWAG | D208: 0 | E208: 1 | F208: =SUM(D208*E208) -> 0 | G208: 8 | H208: =SUM(F208*G208) -> 0
A210: 1780.89 & .90 | B210: Multiple Advances of Agency Funds (Bond Anticipation Note) | C210: Written | D210: 125 | E210: 1 | F210: 125 | G210: 2 | H210: 250
B211: 7 CFR 1777-Colonias | D211: 0 | E211: 1 | F211: =SUM(D211*E211) -> 0 | G211: 2 | H211: =SUM(F211*G211) -> 0
B212: 7 CFR 1778-ECWAG | D212: 0 | E212: 1 | F212: 0 | G212: 2 | H212: 0
A214: 1780.37(b) | B214: Borrower shall maintain accounting records for 3 years | I214: 7000 | J214: 0.08 | K214: =SUM(I214*J214) -> 560
B215: Contractor required records | I215: 7000 | J215: 0.08 | K215: =SUM(I215*J215) -> 560
B216: SUBTOTAL | F216: =SUM(F186:F214) -> 21205 | H216: =SUM(H186:H214) -> 33125 | I216: =SUM(I185:I215) -> 14000 | K216: =SUM(K185:K215) -> 1120
B217: FORMS APPROVED UNDER OTHER OMB NUMBERS
A218: 1780.29(b)(1) | B218: Agreement for Engineering Services | C218: 1942-19 | D218: 817 | E218: 1 | F218: =SUM(D218*E218) -> 817 | G218: 4 | H218: =SUM(F218*G218) -> 3268
B219: 7 CFR 1777-Colonias | C219: (0575-0015) | D219: 30 | E219: 1 | F219: =SUM(D219*E219) -> 30 | G219: 4 | H219: 120
B220: 7 CFR 1778-ECWAG | D220: 49 | E220: 1 | F220: =SUM(D220*E220) -> 49 | G220: 4 | H220: 196
A222: 1780.33(a) | B222: Application for Federal Assistance- Initial Application | C222: SF 424 | D222: 817 | E222: 2 | F222: =SUM(D222*E222) -> 1634 | G222: 1 | H222: =SUM(F222*G222) -> 1634
B223: 7 CFR 1777-Colonias | C223: (4040-0004) | D223: 30 | E223: 2 | F223: =D223*E223 -> 60 | G223: 1 | H223: =F223*G223 -> 60
B224: 7 CFR 1778-ECWAG | D224: 49 | E224: 2 | F224: =D224*E224 -> 98 | G224: 1 | H224: =F224*G224 -> 98
A226: 1780.33(a) | B226: Budget Information--Non-Construction Programs | C226: SF-424A | D226: 817 | E226: 2 | F226: =SUM(D226*E226) -> 1634 | G226: 1 | H226: =SUM(F226*G226) -> 1634
B227: 7 CFR 1777-Colonias | C227: (4040-0006) | D227: 30 | E227: 2 | F227: =D227*E227 -> 60 | G227: 1 | H227: =F227*G227 -> 60
B228: 7 CFR 1778-ECWAG | D228: 49 | E228: 2 | F228: =D228*E228 -> 98 | G228: 1 | H228: =F228*G228 -> 98
A230: 1780.33(a) | B230: Assurances--Non-construction Programs | C230: SF-424B | D230: 817 | E230: 2 | F230: =SUM(D230*E230) -> 1634 | G230: 1 | H230: =SUM(F230*G230) -> 1634
B231: 7 CFR 1777-Colonias | C231: (4040-0007) | D231: 30 | E231: 2 | F231: =D231*E231 -> 60 | G231: 1 | H231: =F231*G231 -> 60
B232: 7 CFR 1778-ECWAG | D232: 49 | E232: 2 | F232: =D232*E232 -> 98 | G232: 1 | H232: =F232*G232 -> 98
A234: 1780.33(e) | B234: Representations Regarding Felony Conviction and Tax | C234: AD-3030 | D234: 817 | E234: 1 | F234: =SUM(D234*E234) -> 817 | G234: 0.25 | H234: =SUM(F234*G234) -> 204.25
B235: Delinquent Status for Corporate Applicants | C235: (0505-0025)
B236: 7 CFR 1777-Colonias | D236: 30 | E236: 1 | F236: 30 | G236: 0.25 | H236: 7.5
B237: 7 CFR 1778-ECWAG | D237: 49 | E237: 1 | F237: 49 | G237: 0.25 | H237: 12.25
A239: 1780.33(e) | B239: Assurances Regarding Felony Conviction and Tax Deilnquent | C239: AD-3031 | D239: 95 | E239: 1 | F239: 95 | G239: 0.25 | H239: 23.75
B240: Status for Corporate Applicants | C240: (0505-0025)
B241: 7 CFR 1777-Colonias | D241: 6 | E241: 1 | F241: 6 | G241: 0.25 | H241: 1.5
B242: 7 CFR 1778-ECWAG | D242: 8 | E242: 1 | F242: 8 | G242: 0.25 | H242: 2
A244: 1780.33(h)(1) | B244: Operating Budget | C244: RD 442-7 | D244: 817 | E244: 1 | F244: =SUM(D244*E244) -> 817 | G244: 5 | H244: =SUM(F244*G244) -> 4085
B245: 7 CFR 1777-Colonias | C245: (0575-0015) | D245: 30 | E245: 1 | F245: =SUM(D245*E245) -> 30 | G245: 5 | H245: =SUM(F245*G245) -> 150
B246: 7 CFR 1778-ECWAG | D246: 49 | E246: 1 | F246: =SUM(D246*E246) -> 49 | G246: 5 | H246: =SUM(F246*G246) -> 245
A248: 1780.33(h)(3) | B248: Equal Opportunity Agreement | C248: RD 400-1 | D248: 817 | E248: 1 | F248: =SUM(D248*E248) -> 817 | G248: 0.08 | H248: =SUM(F248*G248) -> 65.36
B249: 7 CFR 1777-Colonias | C249: (0575-0018) | D249: 30 | E249: 1 | F249: =SUM(D249*E249) -> 30 | G249: 0.08 | H249: =SUM(F249*G249) -> 2.4
B250: 7 CFR 1778-ECWAG | D250: 49 | E250: 1 | F250: =SUM(D250*E250) -> 49 | G250: 0.08 | H250: =SUM(F250*G250) -> 3.92
A253: 1780.33(h)(4) | B253: Assurance Agreement | C253: RD 400-4 | D253: 817 | E253: 1 | F253: =SUM(D253*E253) -> 817 | G253: 0.25 | H253: =SUM(F253*G253) -> 204.25
B254: 7 CFR 1777-Colonias | C254: (0575-0018) | D254: 30 | E254: 1 | F254: =SUM(D254*E254) -> 30 | G254: 0.25 | H254: =SUM(F254*G254) -> 7.5
B255: 7 CFR 1778-ECWAG | D255: 49 | E255: 1 | F255: =SUM(D255*E255) -> 49 | G255: 0.25 | H255: =SUM(F255*G255) -> 12.25
... 50 more rows

Sheet Sheet2

Sheet Sheet3
